[Event "Early-Titled-Tuesday-Blitz-September-05-2023"]
[Site "Chess.com"]
[Date "2023.09.05"]
[Round "8"]
[White "IngOscarArdila"]
[Black "DawidCzerw"]
[Result "1/2-1/2"]
[WhiteElo "2401"]
[BlackElo "2506"]
[TimeControl "180+1"]
[EndTime "9:27:18 PDT"]
[Termination "Game drawn by repetition"]

1. d4 {[%clk 0:03:00]} 1... Nf6 {[%clk 0:03:00]} 2. c4 {[%clk 0:03:00.3]} 2...
e6 {[%clk 0:03:00.6]} 3. Nc3 {[%clk 0:03:00]} 3... Bb4 {[%clk 0:03:00.2]} 4. Bd2
{[%clk 0:02:59.8]} 4... O-O {[%clk 0:02:59.8]} 5. Nf3 {[%clk 0:02:59.6]} 5... d6
{[%clk 0:03:00.2]} 6. e3 {[%clk 0:02:59.4]} 6... Nc6 {[%clk 0:03:00.5]} 7. Be2
{[%clk 0:02:59.2]} 7... e5 {[%clk 0:03:00.8]} 8. dxe5 {[%clk 0:02:59]} 8... dxe5
{[%clk 0:03:00.8]} 9. O-O {[%clk 0:02:58.5]} 9... a6 {[%clk 0:02:59]} 10. a3
{[%clk 0:02:57.8]} 10... Bd6 {[%clk 0:02:57.6]} 11. b4 {[%clk 0:02:53.1]} 11...
e4 {[%clk 0:02:56]} 12. Nd4 {[%clk 0:02:48.4]} 12... Nxd4 {[%clk 0:02:41.9]} 13.
exd4 {[%clk 0:02:48.4]} 13... c6 {[%clk 0:02:42.1]} 14. Be3 {[%clk 0:02:28.9]}
14... Bc7 {[%clk 0:02:35.9]} 15. Qd2 {[%clk 0:01:51.2]} 15... Qd6 {[%clk
0:02:32.6]} 16. g3 {[%clk 0:01:51.5]} 16... Bh3 {[%clk 0:02:32.5]} 17. Bf4
{[%clk 0:01:46.2]} 17... Qd7 {[%clk 0:02:29]} 18. Rfd1 {[%clk 0:01:45.6]} 18...
Rfe8 {[%clk 0:02:17.2]} 19. Bxc7 {[%clk 0:01:38.2]} 19... Qxc7 {[%clk
0:02:18.1]} 20. Qg5 {[%clk 0:01:38.2]} 20... h6 {[%clk 0:02:10.4]} 21. Qh4
{[%clk 0:01:37.5]} 21... Qd7 {[%clk 0:02:09.6]} 22. d5 {[%clk 0:01:13]} 22... c5
{[%clk 0:02:08.6]} 23. bxc5 {[%clk 0:01:09.8]} 23... Kh7 {[%clk 0:02:08.6]} 24.
Qf4 {[%clk 0:01:01.6]} 24... Rac8 {[%clk 0:01:33.4]} 25. Qe3 {[%clk 0:01:00.5]}
25... Ng4 {[%clk 0:01:26.9]} 26. Bxg4 {[%clk 0:00:59.3]} 26... Bxg4 {[%clk
0:01:27.1]} 27. Rd4 {[%clk 0:00:36.3]} 27... f5 {[%clk 0:01:26.5]} 28. Ne2
{[%clk 0:00:23.5]} 28... Bf3 {[%clk 0:01:22.6]} 29. h4 {[%clk 0:00:19.9]} 29...
Qf7 {[%clk 0:01:13.8]} 30. Nf4 {[%clk 0:00:17.9]} 30... g5 {[%clk 0:01:10.2]}
31. hxg5 {[%clk 0:00:17.5]} 31... hxg5 {[%clk 0:01:10.1]} 32. Nh3 {[%clk
0:00:15.7]} 32... f4 {[%clk 0:00:28.9]} 33. Nxg5+ {[%clk 0:00:15.1]} 33... Kg6
{[%clk 0:00:28.5]} 34. Nxf7 {[%clk 0:00:12.2]} 34... fxe3 {[%clk 0:00:28.3]} 35.
fxe3 {[%clk 0:00:10.5]} 35... Kxf7 {[%clk 0:00:27.7]} 36. Kf2 {[%clk 0:00:06.6]}
36... Rh8 {[%clk 0:00:27.4]} 37. Rf1 {[%clk 0:00:03.9]} 37... Rh2+ {[%clk
0:00:26.6]} 38. Ke1 {[%clk 0:00:04.6]} 38... Re2+ {[%clk 0:00:26.7]} 39. Kd1
{[%clk 0:00:05.1]} 39... Rh8 {[%clk 0:00:23]} 40. Kc1 {[%clk 0:00:04.1]} 40...
Rhh2 {[%clk 0:00:20.7]} 41. d6 {[%clk 0:00:04.4]} 41... Rc2+ {[%clk 0:00:20.1]}
42. Kb1 {[%clk 0:00:04.8]} 42... Rb2+ {[%clk 0:00:20.1]} 43. Ka1 {[%clk
0:00:05.3]} 43... Ra2+ {[%clk 0:00:20.6]} 44. Kb1 {[%clk 0:00:05.7]} 44... Rhb2+
{[%clk 0:00:20.5]} 45. Kc1 {[%clk 0:00:05.9]} 45... Rc2+ {[%clk 0:00:19.5]} 46.
Kb1 {[%clk 0:00:06.3]} 46... Rd2 {[%clk 0:00:16]} 47. d7 {[%clk 0:00:04.9]}
47... Rab2+ {[%clk 0:00:15.6]} 48. Ka1 {[%clk 0:00:04.9]} 48... Ra2+ {[%clk
0:00:05.6]} 49. Kb1 {[%clk 0:00:05.1]} 49... Rdb2+ {[%clk 0:00:06]} 50. Kc1
{[%clk 0:00:05.5]} 50... Rc2+ {[%clk 0:00:06.3]} 51. Kb1 {[%clk 0:00:06]} 51...
Rab2+ {[%clk 0:00:05.5]} 52. Ka1 {[%clk 0:00:06.4]} 52... Ra2+ {[%clk
0:00:04.7]} 53. Kb1 {[%clk 0:00:06.9]} 53... Rcb2+ {[%clk 0:00:05.3]} 54. Kc1
{[%clk 0:00:07.3]} 54... Rc2+ {[%clk 0:00:03.6]} 55. Kb1 {[%clk 0:00:07.7]}
1/2-1/2

[Event "Early-Titled-Tuesday-Blitz-September-05-2023"]
[Site "Chess.com"]
[Date "2023.09.05"]
[Round "8"]
[White "Ducke13"]
[Black "szachuspl"]
[Result "1-0"]
[WhiteElo "2444"]
[BlackElo "2535"]
[TimeControl "180+1"]
[EndTime "9:27:19 PDT"]
[Termination "Ducke13 won by resignation"]

1. d4 {[%clk 0:02:57.2]} 1... g6 {[%clk 0:02:57.7]} 2. g3 {[%clk 0:02:57.1]}
2... Bg7 {[%clk 0:02:57.4]} 3. Bg2 {[%clk 0:02:57.5]} 3... c5 {[%clk 0:02:58]}
4. d5 {[%clk 0:02:57.6]} 4... d6 {[%clk 0:02:58.1]} 5. c4 {[%clk 0:02:58.2]}
5... Nf6 {[%clk 0:02:58]} 6. Nc3 {[%clk 0:02:57.9]} 6... O-O {[%clk 0:02:58.7]}
7. Nf3 {[%clk 0:02:58.5]} 7... e6 {[%clk 0:02:59.2]} 8. O-O {[%clk 0:02:58.8]}
8... exd5 {[%clk 0:02:59.8]} 9. cxd5 {[%clk 0:02:59.6]} 9... Re8 {[%clk
0:03:00.4]} 10. Re1 {[%clk 0:02:59.4]} 10... a6 {[%clk 0:02:58.2]} 11. a4 {[%clk
0:02:58.9]} 11... Bg4 {[%clk 0:02:55.4]} 12. Nd2 {[%clk 0:02:55.9]} 12... Qc8
{[%clk 0:02:52.7]} 13. Nc4 {[%clk 0:02:54.4]} 13... Qd8 {[%clk 0:02:48.7]} 14.
a5 {[%clk 0:02:52.3]} 14... Bf8 {[%clk 0:02:33.1]} 15. Bg5 {[%clk 0:02:47]}
15... Nbd7 {[%clk 0:02:31.4]} 16. Qd2 {[%clk 0:02:42.9]} 16... Ne5 {[%clk
0:02:27.8]} 17. Nb6 {[%clk 0:02:26.7]} 17... Rb8 {[%clk 0:02:24.7]} 18. f4
{[%clk 0:02:25.2]} 18... Ned7 {[%clk 0:02:23.2]} 19. h3 {[%clk 0:02:24.8]} 19...
Nxb6 {[%clk 0:02:21.6]} 20. axb6 {[%clk 0:02:18.8]} 20... h6 {[%clk 0:02:20]}
21. Bxf6 {[%clk 0:02:16.1]} 21... Qxf6 {[%clk 0:02:15.9]} 22. hxg4 {[%clk
0:02:15.9]} 22... Qd4+ {[%clk 0:02:07.8]} 23. Qxd4 {[%clk 0:02:14.3]} 23... cxd4
{[%clk 0:02:08.5]} 24. Ne4 {[%clk 0:02:14.6]} 24... Kg7 {[%clk 0:02:08.4]} 25.
g5 {[%clk 0:02:14]} 25... hxg5 {[%clk 0:02:06.6]} 26. fxg5 {[%clk 0:02:12.8]}
26... Re5 {[%clk 0:02:03.5]} 27. Rad1 {[%clk 0:02:07.3]} 27... Rxd5 {[%clk
0:01:59.2]} 28. Nf6 {[%clk 0:01:37]} 28... Rxg5 {[%clk 0:01:58]} 29. Nd7 {[%clk
0:01:32.5]} 29... Rd8 {[%clk 0:01:58.1]} 30. Nxf8 {[%clk 0:01:32.6]} 30... Kxf8
{[%clk 0:01:58]} 31. Rxd4 {[%clk 0:01:31.4]} 31... Rxg3 {[%clk 0:01:56.5]} 32.
Rd3 {[%clk 0:01:22.4]} 32... Rg5 {[%clk 0:01:52.3]} 33. Red1 {[%clk 0:01:14.8]}
33... Ke7 {[%clk 0:01:43.8]} 34. Rd5 {[%clk 0:01:11.5]} 34... Rg3 {[%clk
0:01:35.8]} 35. R1d3 {[%clk 0:01:10.8]} 35... Rg4 {[%clk 0:01:35.8]} 36. e4
{[%clk 0:01:09.3]} 36... Rf4 {[%clk 0:01:24]} 37. e5 {[%clk 0:01:06.4]} 37...
Rb4 {[%clk 0:01:24]} 38. exd6+ {[%clk 0:01:05.5]} 38... Kf8 {[%clk 0:01:24.3]}
39. d7 {[%clk 0:01:03.1]} 39... Rxb6 {[%clk 0:01:23.1]} 40. Rc5 {[%clk
0:01:01.2]} 40... Ke7 {[%clk 0:01:18]} 41. Re5+ {[%clk 0:00:45.9]} 41... Kf8
{[%clk 0:00:51.1]} 42. b3 {[%clk 0:00:45.6]} 42... f6 {[%clk 0:00:31.6]} 43. Re4
{[%clk 0:00:36.7]} 43... Kf7 {[%clk 0:00:28.7]} 44. Rh4 {[%clk 0:00:34.1]} 44...
f5 {[%clk 0:00:24.3]} 45. Bd5+ {[%clk 0:00:27.9]} 45... Kf6 {[%clk 0:00:23.7]}
46. Bc4 {[%clk 0:00:26.3]} 46... Rc6 {[%clk 0:00:20.2]} 47. Rh7 {[%clk
0:00:23.6]} 47... b5 {[%clk 0:00:20.1]} 48. Rf7+ {[%clk 0:00:19.4]} 48... Kg5
{[%clk 0:00:19.9]} 49. Bd5 {[%clk 0:00:17.3]} 49... Rd6 {[%clk 0:00:20.3]} 50.
Be4 {[%clk 0:00:09.4]} 50... Re6 {[%clk 0:00:17.2]} 51. Bf3 {[%clk 0:00:09.4]}
51... Kf4 {[%clk 0:00:17]} 52. Bg2 {[%clk 0:00:09.4]} 52... g5 {[%clk
0:00:17.2]} 53. Rd5 {[%clk 0:00:07.6]} 53... Re5 {[%clk 0:00:16.9]} 54. Rxe5
{[%clk 0:00:07.2]} 54... Kxe5 {[%clk 0:00:17.8]} 55. Bb7 {[%clk 0:00:06.2]}
55... Ke6 {[%clk 0:00:16.7]} 56. Rh7 {[%clk 0:00:05.2]} 56... Rxd7 {[%clk
0:00:17.1]} 57. Bc8 {[%clk 0:00:05.4]} 57... Ke5 {[%clk 0:00:15.7]} 58. Rxd7
{[%clk 0:00:05.9]} 1-0

[Event "Early-Titled-Tuesday-Blitz-September-05-2023"]
[Site "Chess.com"]
[Date "2023.09.05"]
[Round "8"]
[White "Goi_Manne"]
[Black "infinitegiantkiller"]
[Result "0-1"]
[WhiteElo "2314"]
[BlackElo "2487"]
[TimeControl "180+1"]
[EndTime "9:27:20 PDT"]
[Termination "infinitegiantkiller won by resignation"]

1. e4 {[%clk 0:03:00.9]} 1... g6 {[%clk 0:02:50.3]} 2. d4 {[%clk 0:03:00.5]}
2... Bg7 {[%clk 0:02:51.2]} 3. Nc3 {[%clk 0:03:00.9]} 3... d6 {[%clk 0:02:52.1]}
4. Bg5 {[%clk 0:03:01]} 4... Nf6 {[%clk 0:02:52.5]} 5. e5 {[%clk 0:03:00.9]}
5... dxe5 {[%clk 0:02:52.6]} 6. dxe5 {[%clk 0:03:01.5]} 6... Nfd7 {[%clk
0:02:49.9]} 7. e6 {[%clk 0:02:58]} 7... fxe6 {[%clk 0:02:50.8]} 8. Bc4 {[%clk
0:02:51.5]} 8... Nb6 {[%clk 0:02:50.4]} 9. Qxd8+ {[%clk 0:02:49.6]} 9... Kxd8
{[%clk 0:02:51.3]} 10. O-O-O+ {[%clk 0:02:49.4]} 10... Ke8 {[%clk 0:02:51.2]}
11. Bb3 {[%clk 0:02:47.5]} 11... c6 {[%clk 0:02:50.9]} 12. Nf3 {[%clk
0:02:47.5]} 12... Nd5 {[%clk 0:02:51]} 13. Ne4 {[%clk 0:02:43.6]} 13... Nd7
{[%clk 0:02:50.2]} 14. Rhe1 {[%clk 0:02:42.3]} 14... Kf7 {[%clk 0:02:47.8]} 15.
Bh4 {[%clk 0:02:37.4]} 15... h6 {[%clk 0:02:47.6]} 16. Bg3 {[%clk 0:02:36.6]}
16... Re8 {[%clk 0:02:34.9]} 17. c4 {[%clk 0:02:34.9]} 17... N5f6 {[%clk
0:02:34.5]} 18. Nc3 {[%clk 0:02:27.2]} 18... c5 {[%clk 0:02:27.2]} 19. Nb5
{[%clk 0:02:18.5]} 19... Rf8 {[%clk 0:02:25.8]} 20. Nc7 {[%clk 0:02:17.7]} 20...
Rb8 {[%clk 0:02:25.9]} 21. Nxe6 {[%clk 0:02:17.7]} 21... Re8 {[%clk 0:02:21.6]}
22. Bc2 {[%clk 0:01:59.1]} 22... b6 {[%clk 0:01:35.6]} 23. Bxb8 {[%clk
0:01:56.9]} 23... Nxb8 {[%clk 0:01:36.5]} 24. Nc7 {[%clk 0:01:54]} 24... Nc6
{[%clk 0:01:18.7]} 25. Nxe8 {[%clk 0:01:51.3]} 25... Nxe8 {[%clk 0:01:19.6]} 26.
Nh4 {[%clk 0:01:41]} 26... g5 {[%clk 0:00:56.5]} 27. Ng6 {[%clk 0:01:32.7]}
27... Nd6 {[%clk 0:00:51.5]} 28. Ba4 {[%clk 0:01:09.5]} 28... Nd4 {[%clk
0:00:40.5]} 29. Nxe7 {[%clk 0:01:04.2]} 29... Be6 {[%clk 0:00:40.4]} 30. Nd5
{[%clk 0:00:58.1]} 30... Nxc4 {[%clk 0:00:38]} 31. Nc3 {[%clk 0:00:39.8]} 31...
a6 {[%clk 0:00:33.2]} 32. Bb3 {[%clk 0:00:38.7]} 32... Nxb3+ {[%clk 0:00:31.5]}
33. axb3 {[%clk 0:00:39.1]} 33... Na5 {[%clk 0:00:32.3]} 34. Rxe6 {[%clk
0:00:27.7]} 34... Kxe6 {[%clk 0:00:30.8]} 35. Kc2 {[%clk 0:00:26.5]} 35... Nc6
{[%clk 0:00:30]} 36. Re1+ {[%clk 0:00:26.9]} 36... Kd6 {[%clk 0:00:29.7]} 37.
Rd1+ {[%clk 0:00:26.9]} 37... Ke6 {[%clk 0:00:29.9]} 38. Na4 {[%clk 0:00:27.2]}
38... Nd4+ {[%clk 0:00:28.4]} 39. Kb1 {[%clk 0:00:22.2]} 39... Nxb3 {[%clk
0:00:26]} 40. Nxb6 {[%clk 0:00:21.6]} 40... Bd4 {[%clk 0:00:23]} 41. Ka2 {[%clk
0:00:12.4]} 41... Na5 {[%clk 0:00:22.7]} 42. Na4 {[%clk 0:00:12.3]} 42... Nc4
{[%clk 0:00:21.3]} 43. f3 {[%clk 0:00:11.1]} 43... Kd5 {[%clk 0:00:18.8]} 44.
Rc1 {[%clk 0:00:11.5]} 44... Ne3 {[%clk 0:00:18.5]} 45. Nb6+ {[%clk 0:00:11.9]}
45... Kc6 {[%clk 0:00:18.5]} 46. Nc4 {[%clk 0:00:12.6]} 46... Nxg2 {[%clk
0:00:17.8]} 47. Nd2 {[%clk 0:00:12.3]} 47... Be3 {[%clk 0:00:14.3]} 48. Rc2
{[%clk 0:00:12.3]} 48... Nf4 {[%clk 0:00:14.2]} 49. Nb3 {[%clk 0:00:11.4]} 49...
Nd5 {[%clk 0:00:12.8]} 50. Na5+ {[%clk 0:00:11.3]} 50... Kb5 {[%clk 0:00:13]}
51. Nc4 {[%clk 0:00:12.2]} 51... Nb4+ {[%clk 0:00:12.9]} 52. Kb1 {[%clk
0:00:12.5]} 52... Nxc2 {[%clk 0:00:13.8]} 53. Nd6+ {[%clk 0:00:11.7]} 53... Kc6
{[%clk 0:00:13.7]} 54. Ne4 {[%clk 0:00:11.1]} 54... Nd4 {[%clk 0:00:12.9]} 55.
Nf6 {[%clk 0:00:11.5]} 55... Bf4 {[%clk 0:00:13.2]} 56. Ng8 {[%clk 0:00:11.7]}
56... h5 {[%clk 0:00:13.2]} 57. Ne7+ {[%clk 0:00:12.4]} 57... Kd6 {[%clk
0:00:12.5]} 58. Ng6 {[%clk 0:00:13.3]} 58... Bxh2 {[%clk 0:00:12.1]} 59. Kc1
{[%clk 0:00:13.8]} 59... Bf4+ {[%clk 0:00:12.7]} 60. Kd1 {[%clk 0:00:13]} 60...
h4 {[%clk 0:00:11.7]} 61. b4 {[%clk 0:00:12.6]} 61... cxb4 {[%clk 0:00:11.5]}
62. Nf8 {[%clk 0:00:13.1]} 62... h3 {[%clk 0:00:11.5]} 63. Nh7 {[%clk 0:00:14]}
63... h2 {[%clk 0:00:11.8]} 0-1

[Event "Early-Titled-Tuesday-Blitz-September-05-2023"]
[Site "Chess.com"]
[Date "2023.09.05"]
[Round "8"]
[White "Lady_Nika"]
[Black "alpltl"]
[Result "1-0"]
[WhiteElo "2470"]
[BlackElo "2346"]
[TimeControl "180+1"]
[EndTime "9:27:20 PDT"]
[Termination "Lady_Nika won by resignation"]

1. e4 {[%clk 0:03:00.9]} 1... c6 {[%clk 0:02:21.5]} 2. d4 {[%clk 0:02:59.9]}
2... d5 {[%clk 0:02:21.2]} 3. Nc3 {[%clk 0:03:00.8]} 3... g6 {[%clk 0:02:21]} 4.
f4 {[%clk 0:02:58.7]} 4... dxe4 {[%clk 0:02:20.3]} 5. Nxe4 {[%clk 0:02:58.7]}
5... Nd7 {[%clk 0:02:19.9]} 6. c3 {[%clk 0:02:58.8]} 6... Bg7 {[%clk 0:02:19.5]}
7. Nf3 {[%clk 0:02:59]} 7... Ngf6 {[%clk 0:02:19.4]} 8. Nxf6+ {[%clk 0:02:59.1]}
8... Nxf6 {[%clk 0:02:16.8]} 9. Bc4 {[%clk 0:02:59.2]} 9... O-O {[%clk
0:02:16.6]} 10. O-O {[%clk 0:02:58.6]} 10... Bf5 {[%clk 0:02:16.4]} 11. h3
{[%clk 0:02:57.8]} 11... Be4 {[%clk 0:02:16.3]} 12. Ne5 {[%clk 0:02:56.5]} 12...
Bd5 {[%clk 0:02:15.9]} 13. Bxd5 {[%clk 0:02:53.3]} 13... cxd5 {[%clk 0:02:15.8]}
14. Qb3 {[%clk 0:02:51.7]} 14... Qb6 {[%clk 0:02:14.6]} 15. Qd1 {[%clk
0:02:49.7]} 15... e6 {[%clk 0:02:14.4]} 16. Kh2 {[%clk 0:02:46.7]} 16... a5
{[%clk 0:02:14.8]} 17. g4 {[%clk 0:02:39]} 17... Rfc8 {[%clk 0:02:13]} 18. Qe2
{[%clk 0:02:38]} 18... a4 {[%clk 0:02:12.5]} 19. a3 {[%clk 0:02:37.7]} 19... Ne4
{[%clk 0:02:12]} 20. Be3 {[%clk 0:02:36.6]} 20... f5 {[%clk 0:02:11.2]} 21. Rg1
{[%clk 0:02:34.9]} 21... Bxe5 {[%clk 0:02:10.7]} 22. dxe5 {[%clk 0:02:31.3]}
22... Qa6 {[%clk 0:02:06.7]} 23. Qc2 {[%clk 0:02:26.4]} 23... Qc4 {[%clk
0:02:01.7]} 24. gxf5 {[%clk 0:02:23.2]} 24... exf5 {[%clk 0:02:00.1]} 25. Rad1
{[%clk 0:02:22.8]} 25... Rd8 {[%clk 0:01:54.2]} 26. Rd4 {[%clk 0:02:21.9]} 26...
Qc6 {[%clk 0:01:53]} 27. Qe2 {[%clk 0:02:19.3]} 27... Kf7 {[%clk 0:01:51.7]} 28.
Qd1 {[%clk 0:02:17.6]} 28... Ra5 {[%clk 0:01:49.5]} 29. h4 {[%clk 0:02:14.9]}
29... h5 {[%clk 0:01:48.6]} 30. Kh3 {[%clk 0:02:11.7]} 30... Rb5 {[%clk
0:01:47.2]} 31. c4 {[%clk 0:02:08.4]} 31... Rb3 {[%clk 0:01:45.6]} 32. Qe2
{[%clk 0:01:45.8]} 32... Rc8 {[%clk 0:01:25.3]} 33. cxd5 {[%clk 0:01:39.5]}
33... Qc2 {[%clk 0:01:25.9]} 34. e6+ {[%clk 0:01:37]} 34... Kf6 {[%clk
0:01:22.6]} 35. Re1 {[%clk 0:01:27]} 35... Nf2+ {[%clk 0:01:16.7]} 36. Kg2
{[%clk 0:01:21.4]} 36... Rxe3 {[%clk 0:00:56.4]} 37. Qxe3 {[%clk 0:01:16.7]}
37... Ne4+ {[%clk 0:00:28.2]} 38. Qe2 {[%clk 0:01:14.6]} 38... Qc5 {[%clk
0:00:27.2]} 39. Rxe4 {[%clk 0:01:13.8]} 39... Qxd5 {[%clk 0:00:25.6]} 40. e7
{[%clk 0:01:08.4]} 40... fxe4 {[%clk 0:00:22.2]} 41. Qxe4 {[%clk 0:01:06.8]}
41... Qxe4+ {[%clk 0:00:22.5]} 42. Rxe4 {[%clk 0:01:07.6]} 42... Re8 {[%clk
0:00:23.1]} 43. Kf3 {[%clk 0:01:04.1]} 43... Rxe7 {[%clk 0:00:21.4]} 44. Rxa4
{[%clk 0:01:00.7]} 44... Rc7 {[%clk 0:00:19.2]} 45. Rb4 {[%clk 0:01:00.5]} 45...
Rd7 {[%clk 0:00:18.5]} 46. Ke4 {[%clk 0:00:59.8]} 46... Re7+ {[%clk 0:00:18.7]}
47. Kd5 {[%clk 0:00:59.8]} 47... Rc7 {[%clk 0:00:19.1]} 48. Kd6 {[%clk
0:00:59.4]} 48... Rf7 {[%clk 0:00:17.3]} 49. Rb5 {[%clk 0:00:53]} 49... Rh7
{[%clk 0:00:13.3]} 50. a4 {[%clk 0:00:49.2]} 50... Re7 {[%clk 0:00:13.8]} 51. b4
{[%clk 0:00:44.1]} 51... Rf7 {[%clk 0:00:07.3]} 52. Rg5 {[%clk 0:00:40.2]} 52...
Rg7 {[%clk 0:00:03.1]} 53. a5 {[%clk 0:00:38.7]} 53... Re7 {[%clk 0:00:03.4]}
54. Rxg6+ {[%clk 0:00:38.4]} 54... Kxg6 {[%clk 0:00:02.9]} 55. Kxe7 {[%clk
0:00:38.5]} 55... Kf5 {[%clk 0:00:03.8]} 56. b5 {[%clk 0:00:39]} 56... Kg4
{[%clk 0:00:04.7]} 57. a6 {[%clk 0:00:39.7]} 57... Kxh4 {[%clk 0:00:05.6]} 58.
axb7 {[%clk 0:00:40]} 58... Kg3 {[%clk 0:00:06.5]} 59. b8=Q {[%clk 0:00:40.9]}
59... h4 {[%clk 0:00:07.4]} 60. b6 {[%clk 0:00:41.4]} 60... h3 {[%clk
0:00:08.3]} 61. f5+ {[%clk 0:00:41.7]} 61... Kg2 {[%clk 0:00:07.6]} 62. f6
{[%clk 0:00:42.3]} 62... h2 {[%clk 0:00:08.5]} 63. f7 {[%clk 0:00:41.7]} 63...
h1=Q {[%clk 0:00:07.4]} 64. Qb7+ {[%clk 0:00:41.8]} 64... Kg1 {[%clk 0:00:07.2]}
65. Qxh1+ {[%clk 0:00:42.7]} 1-0

[Event "Early-Titled-Tuesday-Blitz-September-05-2023"]
[Site "Chess.com"]
[Date "2023.09.05"]
[Round "8"]
[White "artin10862"]
[Black "Kirill_Klukin"]
[Result "1-0"]
[WhiteElo "2970"]
[BlackElo "2796"]
[TimeControl "180+1"]
[EndTime "9:27:21 PDT"]
[Termination "artin10862 won on time"]

1. d4 {[%clk 0:02:59]} 1... Nf6 {[%clk 0:02:58.4]} 2. Nf3 {[%clk 0:02:59.4]}
2... e6 {[%clk 0:02:53.9]} 3. e3 {[%clk 0:02:55.3]} 3... g6 {[%clk 0:02:47.3]}
4. b3 {[%clk 0:02:44.3]} 4... Bg7 {[%clk 0:02:47.5]} 5. Bb2 {[%clk 0:02:44.9]}
5... O-O {[%clk 0:02:46.9]} 6. Nbd2 {[%clk 0:02:45.5]} 6... b6 {[%clk
0:02:46.9]} 7. Bd3 {[%clk 0:02:44.4]} 7... Bb7 {[%clk 0:02:47.2]} 8. O-O {[%clk
0:02:43.5]} 8... d5 {[%clk 0:02:42.2]} 9. c4 {[%clk 0:02:42.9]} 9... Nbd7 {[%clk
0:02:42.3]} 10. cxd5 {[%clk 0:02:41.8]} 10... Nxd5 {[%clk 0:02:41.1]} 11. Rc1
{[%clk 0:02:36.2]} 11... c5 {[%clk 0:02:40.6]} 12. a3 {[%clk 0:02:34.2]} 12...
Rc8 {[%clk 0:02:37.1]} 13. Qe2 {[%clk 0:02:33.9]} 13... cxd4 {[%clk 0:02:29.4]}
14. Nxd4 {[%clk 0:02:33]} 14... Nc5 {[%clk 0:02:29.6]} 15. Bc4 {[%clk
0:02:29.4]} 15... Qe7 {[%clk 0:02:24.5]} 16. b4 {[%clk 0:02:27.4]} 16... Na4
{[%clk 0:02:08.8]} 17. Ba1 {[%clk 0:02:26.9]} 17... a5 {[%clk 0:01:53.1]} 18.
Bxd5 {[%clk 0:01:12.3]} 18... Bxd5 {[%clk 0:01:50.7]} 19. Qb5 {[%clk 0:01:12.5]}
19... Rxc1 {[%clk 0:01:41.5]} 20. Rxc1 {[%clk 0:01:13.4]} 20... Qe8 {[%clk
0:01:42]} 21. Qe2 {[%clk 0:01:00.2]} 21... axb4 {[%clk 0:01:32.4]} 22. axb4
{[%clk 0:01:01.1]} 22... Qd7 {[%clk 0:01:32.3]} 23. N2f3 {[%clk 0:00:52.7]}
23... Rc8 {[%clk 0:01:28.5]} 24. Rd1 {[%clk 0:00:38.1]} 24... Qb7 {[%clk
0:01:06.6]} 25. Nb5 {[%clk 0:00:37.4]} 25... Bxa1 {[%clk 0:01:01.6]} 26. Rxa1
{[%clk 0:00:35.3]} 26... Nc3 {[%clk 0:00:33.3]} 27. Nxc3 {[%clk 0:00:33.5]}
27... Rxc3 {[%clk 0:00:34.2]} 28. Qd2 {[%clk 0:00:29.8]} 28... Rc4 {[%clk
0:00:31.3]} 29. Ne5 {[%clk 0:00:26.9]} 29... Re4 {[%clk 0:00:20.6]} 30. Qb2
{[%clk 0:00:17.7]} 30... Qe7 {[%clk 0:00:17.9]} 31. Nd3 {[%clk 0:00:10.4]} 31...
Qg5 {[%clk 0:00:15.2]} 32. g3 {[%clk 0:00:10.3]} 32... Qg4 {[%clk 0:00:13.4]}
33. Nf4 {[%clk 0:00:06]} 33... Rxf4 {[%clk 0:00:07.9]} 34. exf4 {[%clk
0:00:06.2]} 34... Qf3 {[%clk 0:00:08.5]} 35. Kf1 {[%clk 0:00:06.5]} 35... Bc4+
{[%clk 0:00:08.7]} 36. Ke1 {[%clk 0:00:06.6]} 36... Qe4+ {[%clk 0:00:07]} 37.
Kd1 {[%clk 0:00:05.9]} 37... Qd3+ {[%clk 0:00:06.8]} 38. Qd2 {[%clk 0:00:03.4]}
38... Qf1+ {[%clk 0:00:07]} 39. Qe1 {[%clk 0:00:03.7]} 39... Qd3+ {[%clk
0:00:06.1]} 40. Kc1 {[%clk 0:00:04.1]} 40... Bb3 {[%clk 0:00:04.8]} 41. Qd2
{[%clk 0:00:03.2]} 41... Qc4+ {[%clk 0:00:03.2]} 42. Kb2 {[%clk 0:00:03.6]}
42... Ba4 {[%clk 0:00:04]} 43. Rxa4 {[%clk 0:00:03.4]} 43... h5 {[%clk
0:00:02.2]} 44. Ra8+ {[%clk 0:00:03.5]} 44... Kh7 {[%clk 0:00:02.9]} 45. Rd8
{[%clk 0:00:03.4]} 45... Qe4 {[%clk 0:00:02.9]} 46. Qc3 {[%clk 0:00:02.6]} 46...
Qe2+ {[%clk 0:00:02]} 47. Rd2 {[%clk 0:00:02.7]} 47... Qe4 {[%clk 0:00:01.5]}
48. Rc2 {[%clk 0:00:03.6]} 48... g5 {[%clk 0:00:01.2]} 49. h4 {[%clk 0:00:04.5]}
1-0